fUSD/lending_fUSD_20250611
["ID","MTS","AMOUNT","RATE_DAILY","PERIOD"]
[365336921,1749606644372,-490.0,0.00016438,2]
[365336922,1749606644381,-151.89654967,0.00016438,2]
[365336923,1749606644391,-480.0,0.00016438,2]
[365336924,1749606644400,-490.0,0.00016438,2]
[365336925,1749606644411,-490.0,0.00016438,2]
[365336926,1749606644422,-396.51352015,0.00016438,2]
[365336927,1749606644431,-490.0,0.00016438,2]
[365336928,1749606644440,-465.24669242,0.00016438,2]
[365336929,1749606644449,-534.35772679,0.00016438,2]
[365336930,1749606644459,-490.0,0.00016438,2]
[365336931,1749606644468,-497.69864256,0.00016438,2]
[365336932,1749606644477,-490.0,0.00016438,2]
[365336933,1749606644487,-466.53959059,0.00016438,2]
[365336934,1749606644496,-486.18173438,0.00016438,2]
[365336935,1749606644505,-490.0,0.00016438,2]
[365336936,1749606644514,-466.02892259,0.00016438,2]
[365336937,1749606644523,-490.0,0.00016438,2]
[365336938,1749606644532,-490.0,0.00016438,2]
[365336939,1749606644542,-490.0,0.00016438,2]
[365336940,1749606644551,-399.8445997,0.00016438,2]
[365336941,1749606644561,-490.0,0.00016438,2]
[365336942,1749606644570,-490.0,0.00016438,2]
[365336943,1749606644579,-568.85861959,0.00016438,2]
[365336944,1749606644589,-382.39522684,0.00016438,2]
[365336945,1749606644598,-502.95489485,0.00016438,2]
[365336946,1749606644607,-490.0,0.00016438,2]
[365336947,1749606644617,-494.97038348,0.00016438,2]
[365336948,1749606644626,-490.0,0.00016438,2]
[365336949,1749606644636,-490.0,0.00016438,2]
[365336950,1749606644645,-383.34086956,0.00016438,2]
[365336951,1749606644654,-482.69278323,0.00016438,2]
[365336952,1749606644664,-490.0,0.00016438,2]
[365336953,1749606644674,-530.87651297,0.00016438,2]
[365336954,1749606644684,-232.04873406,0.00016438,2]
[365336955,1749606644693,-587.85540393,0.00016438,2]
[365336956,1749606644702,-490.0,0.00016438,2]
[365336957,1749606644711,-469.22922567,0.00016438,2]
[365336958,1749606644720,-629.63796367,0.00016438,2]
[365336959,1749606644730,-490.0,0.00016438,2]
[365336960,1749606644739,-490.0,0.00016438,2]
[365336961,1749606644749,-490.0,0.00016438,2]
[365336962,1749606644758,-490.0,0.00016438,2]
[365336963,1749606644767,-569.63141395,0.00016438,2]
[365336964,1749606644776,-490.0,0.00016438,2]
[365336965,1749606644786,-503.13727609,0.00016438,2]
[365336966,1749606644795,-490.0,0.00016438,2]
[365336967,1749606644804,-485.61506885,0.00016438,2]
[365336968,1749606644813,-477.92574836,0.00016438,2]
[365336969,1749606644823,-495.79447665,0.00016438,2]
[365336970,1749606644832,-465.52648279,0.00016438,2]
[365336971,1749606644841,-490.0,0.00016438,2]
[365336972,1749606644850,-490.0,0.00016438,2]
[365336973,1749606644860,-490.0,0.00016438,2]
[365336974,1749606644869,-504.0516932,0.00016438,2]
[365336975,1749606644878,-490.0,0.00016438,2]
[365336976,1749606644887,-490.0,0.00016438,2]
[365336977,1749606644897,-490.0,0.00016438,2]
[365336978,1749606644906,-490.0,0.00016438,2]
[365336979,1749606644917,-490.0,0.00016438,2]
[365336980,1749606644926,-382.98224809,0.00016438,2]
[365336981,1749606644936,-584.1535214,0.00016438,2]
[365336982,1749606644945,-468.87514429,0.00016438,2]
[365336983,1749606644954,-490.0,0.00016438,2]
[365336984,1749606644963,-517.0995098,0.00016438,2]
[365336985,1749606644973,-463.19303793,0.00016438,2]
[365336986,1749606644982,-490.0,0.00016438,2]
[365336987,1749606644991,-383.99891317,0.00016438,2]
[365336988,1749606645001,-492.41940854,0.00016438,2]
[365336989,1749606645010,-490.0,0.00016438,2]
[365336990,1749606645020,-496.17815596,0.00016438,2]
[365336991,1749606645030,-490.0,0.00016438,2]
[365336992,1749606645039,-464.27196091,0.00016438,2]
[365336993,1749606645049,-490.0,0.00016438,2]
[365336994,1749606645058,-490.0,0.00016438,2]
[365336995,1749606645068,-493.21648572,0.00016438,2]
[365336996,1749606645077,-490.0,0.00016438,2]
[365336997,1749606645086,-469.55666659,0.00016438,2]
[365336998,1749606645095,-465.06324699,0.00016438,2]
[365336999,1749606645105,-498.17285379,0.00016438,2]
[365337000,1749606645114,-490.0,0.00016438,2]
[365337001,1749606645124,-490.0,0.00016438,2]
[365337002,1749606645133,-490.0,0.00016438,2]
[365337003,1749606645143,-490.0,0.00016438,2]
[365337004,1749606645152,-490.0,0.00016438,2]
[365337005,1749606645162,-633.32490372,0.00016438,2]
[365337006,1749606645172,-490.0,0.00016438,2]
[365337007,1749606645181,-465.92908417,0.00016438,2]
[365337008,1749606645192,-490.0,0.00016438,2]
[365337009,1749606645201,-490.0,0.00016438,2]
[365337010,1749606645210,-490.0,0.00016438,2]
[365337011,1749606645219,-490.0,0.00016438,2]
[365337012,1749606645229,-558.15561691,0.00016438,2]
[365337013,1749606645238,-255.18360522,0.00016438,2]
[365337014,1749606645247,-490.0,0.00016438,2]
[365337015,1749606645256,-490.0,0.00016438,2]
[365337016,1749606645266,-490.0,0.00016438,2]
[365337017,1749606645275,-506.98128477,0.00016438,2]
[365337018,1749606645284,-488.00598852,0.00016438,2]
[365337019,1749606645293,-480.0,0.00016438,2]
[365337020,1749606645303,-490.0,0.00016438,2]
[365337021,1749606645312,-464.5156874,0.00016438,2]
[365337022,1749606645321,-490.0,0.00016438,2]
[365337023,1749606645330,-490.0,0.00016438,2]
[365337024,1749606645340,-306.01003803,0.00016438,2]
[365337025,1749606645351,-490.0,0.00016438,2]
[365337026,1749606645361,-538.54862485,0.00016438,2]
[365337027,1749606645370,-490.0,0.00016438,2]
[365337028,1749606645379,-484.71691972,0.00016438,2]
[365337029,1749606645390,-293.23630056,0.00016438,2]
[365337030,1749606645400,-490.0,0.00016438,2]
[365337031,1749606645409,-499.26774912,0.00016438,2]
[365337032,1749606645418,-531.33448151,0.00016438,2]
[365337033,1749606645428,-502.35713342,0.00016438,2]
[365337034,1749606645437,-511.39185869,0.00016438,2]
[365337035,1749606645447,-487.67893415,0.00016438,2]
[365337036,1749606645456,-480.0,0.00016438,2]
[365337037,1749606645465,-512.5616723,0.00016438,2]
[365337038,1749606645474,-501.00283087,0.00016438,2]
[365337039,1749606645484,-172.70742563,0.00016438,2]
[365337040,1749606645493,-490.0,0.00016438,2]
[365337041,1749606645503,-525.72185897,0.00016438,2]
[365337042,1749606645512,-362.14782421,0.00016438,2]
[365337043,1749606645521,-300.0,0.00016438,2]
[365337044,1749606645530,-482.03878507,0.00016438,2]
[365337045,1749606645539,-482.2472092,0.00016438,2]
[365337046,1749606645549,-490.0,0.00016438,2]
[365337047,1749606645559,-469.43415591,0.00016438,2]
[365337048,1749606645569,-514.02770122,0.00016438,2]
[365337049,1749606645578,-518.98955117,0.00016438,2]
[365337050,1749606645587,-490.0,0.00016438,2]
[365337051,1749606645597,-583.80012102,0.00016438,2]
[365337052,1749606645606,-480.0,0.00016438,2]
[365337053,1749606645615,-490.70364555,0.00016438,2]
[365337054,1749606645625,-482.76641846,0.00016438,2]
[365337055,1749606645634,-504.51398079,0.00016438,2]
[365337056,1749606645644,-510.64338614,0.00016438,2]
[365337057,1749606645655,-478.83337842,0.00016438,2]
[365337058,1749606645665,-505.44814339,0.00016438,2]
[365337059,1749606645674,-480.0,0.00016438,2]
[365337060,1749606645683,-518.63803826,0.00016438,2]
[365337061,1749606645692,-541.96705255,0.00016438,2]
[365337062,1749606645701,-490.0,0.00016438,2]
[365337063,1749606645710,-513.41286365,0.00016438,2]
[365337064,1749606645720,-478.52568298,0.00016438,2]
[365337066,1749606645926,-482.74623923,0.00016438,2]
[365337068,1749606645937,-483.14440833,0.00016438,2]
[365337070,1749606645946,-478.22906636,0.00016438,2]
[365337072,1749606645956,-489.41507821,0.00016438,2]
[365337074,1749606645965,-490.0,0.00016438,2]
[365337076,1749606645976,-481.61714493,0.00016438,2]
[365337077,1749606645985,-506.20307154,0.00016438,2]
[365337078,1749606645993,-482.68944612,0.00016438,2]
[365337079,1749606646003,-532.73378603,0.00016438,2]
[365337080,1749606646012,-480.0,0.00016438,2]
[365337081,1749606646022,-511.74435,0.00016438,2]
[365337082,1749606646032,-480.0,0.00016438,2]
[365337083,1749606646042,-500.33649587,0.00016438,2]
[365337084,1749606646052,-490.0,0.00016438,2]
[365337085,1749606646062,-490.0,0.00016438,2]
[365337086,1749606646072,-395.55336613,0.00016438,2]
[365337087,1749606646081,-484.39336253,0.00016438,2]
[365337088,1749606646090,-462.37375586,0.00016438,2]
[365337089,1749606646100,-469.32018841,0.00016438,2]
[365337090,1749606646109,-250.19782693,0.00016438,2]
[365337091,1749606646118,-524.11334443,0.00016438,2]
[365337092,1749606646128,-521.81264318,0.00016438,2]
[365337093,1749606646140,-380.47952525,0.00016438,2]
[365337094,1749606646149,-433.57937609,0.00016438,2]
[365337095,1749606646159,-526.61811528,0.00016438,2]
[365337096,1749606646168,-523.21209469,0.00016438,2]
[365337097,1749606646179,-630.2419937,0.00016438,2]
[365337098,1749606646188,-193.92309667,0.00016438,2]
[365337099,1749606646198,-476.21037043,0.00016438,2]
[365337100,1749606646207,-490.0,0.00016438,2]
[365337101,1749606646216,-636.53699391,0.00016438,2]
[365337102,1749606646226,-466.46748021,0.00016438,2]
[365337103,1749606646235,-474.22882021,0.00016438,2]
[365337104,1749606646245,-482.53755969,0.00016438,2]
[365337105,1749606646254,-490.0,0.00016438,2]
[365337106,1749606646264,-490.0,0.00016438,2]
[365337107,1749606646274,-471.70254088,0.00016438,2]
[365337108,1749606646284,-460.94366592,0.00016438,2]
[365337109,1749606646294,-560.74672803,0.00016438,2]
[365337110,1749606646303,-490.0,0.00016438,2]
[365337111,1749606646313,-490.0,0.00016438,2]
[365337112,1749606646322,-387.3575549,0.00016438,2]
[365337113,1749606646332,-533.92028185,0.00016438,2]
[365337114,1749606646341,-237.34570748,0.00016438,2]
[365337115,1749606646355,-490.0,0.00016438,2]
[365337116,1749606646364,-490.0,0.00016438,2]
[365337117,1749606646374,-214.93209484,0.00016438,2]
[365337118,1749606646383,-360.70823461,0.00016438,2]
[365337119,1749606646393,-426.11392546,0.00016438,2]
[365337120,1749606646403,-490.0,0.00016438,2]
[365337121,1749606646412,-490.0,0.00016438,2]
[365337122,1749606646422,-547.68816635,0.00016438,2]
[365337123,1749606646432,-466.47469972,0.00016438,2]
[365337124,1749606646441,-490.0,0.00016438,2]
[365337125,1749606646451,-460.0,0.00016438,2]
[365337126,1749606646460,-472.44020729,0.00016438,2]
[365337127,1749606646469,-490.0,0.00016438,2]
[365337128,1749606646479,-383.13069651,0.00016438,2]
[365337129,1749606646488,-462.64129617,0.00016438,2]
[365337130,1749606646498,-462.25261825,0.00016438,2]
[365337131,1749606646507,-465.29622728,0.00016438,2]
[365337132,1749606646516,-490.0,0.00016438,2]
[365337133,1749606646526,-480.0,0.00016438,2]
[365337134,1749606646535,-490.0,0.00016438,2]
[365337135,1749606646544,-490.0,0.00016438,2]
[365337136,1749606646553,-490.0,0.00016438,2]
[365337138,1749606646563,-470.44258794,0.00016438,2]
[365337139,1749606646571,-490.0,0.00016438,2]
[365337140,1749606646581,-490.0,0.00016438,2]
[365337141,1749606646590,-380.0,0.00016438,2]
[365337142,1749606646599,-480.0,0.00016438,2]
[365337143,1749606646608,-490.0,0.00016438,2]
[365337144,1749606646618,-275.72181767,0.00016438,2]
[365337145,1749606646627,-490.0,0.00016438,2]
[365337146,1749606646637,-460.0,0.00016438,2]
[365337147,1749606646646,-480.0,0.00016438,2]
[365337148,1749606646655,-511.53381865,0.00016438,2]
[365337149,1749606646665,-465.42755722,0.00016438,2]
[365337150,1749606646674,-490.0,0.00016438,2]
[365337151,1749606646684,-490.0,0.00016438,2]
[365337152,1749606646693,-460.0,0.00016438,2]
[365337153,1749606646703,-490.0,0.00016438,2]
[365337154,1749606646712,-285.06779483,0.00016438,2]
[365337155,1749606646721,-462.98159824,0.00016438,2]
[365337156,1749606646731,-384.89333597,0.00016438,2]
[365337157,1749606646740,-194.61581276,0.00016438,2]
[365337158,1749606646749,-465.32053426,0.00016438,2]
[365337159,1749606646759,-470.80853384,0.00016438,2]
[365337160,1749606646769,-385.59213727,0.00016438,2]
[365337161,1749606646778,-490.0,0.00016438,2]
[365337162,1749606646787,-490.0,0.00016438,2]
[365337163,1749606646798,-462.90238481,0.00016438,2]
[365337164,1749606646807,-472.5724,0.00016438,2]
[365337165,1749606646817,-384.75344201,0.00016438,2]
[365337166,1749606646826,-490.0,0.00016438,2]
[365337167,1749606646835,-464.15717012,0.00016438,2]
[365337168,1749606646844,-490.0,0.00016438,2]
[365337169,1749606646853,-516.62368839,0.00016438,2]
[365337170,1749606646862,-490.0,0.00016438,2]
[365337171,1749606646871,-490.0,0.00016438,2]
[365337172,1749606646881,-490.0,0.00016438,2]
[365337173,1749606646890,-490.0,0.00016438,2]
[365337174,1749606646899,-464.98331689,0.00016438,2]
[365337175,1749606646909,-466.10858395,0.00016438,2]
[365337176,1749606646919,-473.6412808,0.00016438,2]
[365337177,1749606646928,-460.0,0.00016438,2]
[365337178,1749606646937,-603.86418592,0.00016438,2]
[365337179,1749606646946,-490.0,0.00016438,2]
[365337180,1749606646955,-250.0,0.00016438,2]
[365337181,1749606646964,-160.10430315,0.00016438,2]
[365337182,1749606646973,-490.0,0.00016438,2]
[365337183,1749606646983,-490.0,0.00016438,2]
[365337184,1749606646992,-490.0,0.00016438,2]
[365337185,1749606647001,-460.0,0.00016438,2]
[365337186,1749606647010,-472.35047341,0.00016438,2]
[365337187,1749606647019,-490.0,0.00016438,2]
[365337188,1749606647028,-463.90585485,0.00016438,2]
[365337189,1749606647038,-460.0,0.00016438,2]
[365337190,1749606647047,-490.0,0.00016438,2]
[365337191,1749606647056,-470.5737692,0.00016438,2]
[365337192,1749606647066,-490.0,0.00016438,2]
[365337193,1749606647076,-467.6079859,0.00016438,2]
[365337194,1749606647085,-388.11064033,0.00016438,2]
[365337195,1749606647094,-460.0,0.00016438,2]
[365337196,1749606647104,-490.0,0.00016438,2]
[365337197,1749606647113,-490.0,0.00016438,2]
[365337198,1749606647122,-221.34178356,0.00016438,2]
[365337199,1749606647131,-490.0,0.00016438,2]
[365337200,1749606647140,-490.0,0.00016438,2]
[365337201,1749606647149,-490.0,0.00016438,2]
[365337202,1749606647159,-490.0,0.00016438,2]
[365337203,1749606647169,-163.97977273,0.00016438,2]
[365337204,1749606647178,-490.0,0.00016438,2]
[365337205,1749606647187,-490.0,0.00016438,2]
[365337206,1749606647196,-493.41691493,0.00016438,2]
[365337207,1749606647205,-467.25294614,0.00016438,2]
[365337208,1749606647215,-599.32788245,0.00016438,2]
[365337209,1749606647224,-571.27349694,0.00016438,2]
[365337210,1749606647233,-490.0,0.00016438,2]
[365337211,1749606647242,-501.92285201,0.00016438,2]
[365337212,1749606647252,-466.55491096,0.00016438,2]
[365337213,1749606647261,-490.0,0.00016438,2]
[365337214,1749606647270,-490.0,0.00016438,2]
[365337215,1749606647278,-490.0,0.00016438,2]
[365337216,1749606647287,-466.18478196,0.00016438,2]
[365337217,1749606647296,-469.00904753,0.00016438,2]
[365337218,1749606647305,-465.57013109,0.00016438,2]
[365337219,1749606647314,-469.80261918,0.00016438,2]
[365337220,1749606647323,-495.20672714,0.00016438,2]
[365337221,1749606647332,-384.38022372,0.00016438,2]
[365337222,1749606647341,-460.0,0.00016438,2]
[365337223,1749606647354,-541.33301371,0.00016438,2]
[365337224,1749606647363,-460.0,0.00016438,2]
[365337225,1749606647372,-490.0,0.00016438,2]
[365337226,1749606647381,-490.0,0.00016438,2]
[365337227,1749606647391,-480.0,0.00016438,2]
[365337228,1749606647400,-621.47931127,0.00016438,2]
[365337229,1749606647409,-489.78232441,0.00016438,2]
[365337230,1749606647420,-490.0,0.00016438,2]
[365337231,1749606647430,-490.0,0.00016438,2]
[365337232,1749606647440,-460.0,0.00016438,2]
[365337233,1749606647449,-490.0,0.00016438,2]
[365337234,1749606647458,-572.96850785,0.00016438,2]
[365337235,1749606647467,-563.90024873,0.00016438,2]
[365337236,1749606647476,-480.0,0.00016438,2]
[365337237,1749606647485,-468.43506934,0.00016438,2]
[365337238,1749606647494,-471.10222062,0.00016438,2]
[365337239,1749606647502,-462.21688118,0.00016438,2]
[365337240,1749606647511,-490.0,0.00016438,2]
[365337241,1749606647520,-490.0,0.00016438,2]
[365337242,1749606647529,-486.48955971,0.00016438,2]
[365337243,1749606647538,-490.0,0.00016438,2]
[365337244,1749606647546,-480.0,0.00016438,2]
[365337245,1749606647555,-490.0,0.00016438,2]
[365337246,1749606647564,-230.42702951,0.00016438,2]
[365337247,1749606647573,-494.36028686,0.00016438,2]
[365337248,1749606647583,-475.10533014,0.00016438,2]
[365337249,1749606647592,-522.00901057,0.00016438,2]
[365337250,1749606647601,-598.91,0.00016438,2]
[365337251,1749606647610,-480.0,0.00016438,2]
[365337252,1749606647619,-490.0,0.00016438,2]
[365337253,1749606647629,-213.00770206,0.00016438,2]
[365337254,1749606647638,-526.13350227,0.00016438,2]
[365337255,1749606647647,-490.0,0.00016438,2]
[365337256,1749606647657,-490.0,0.00016438,2]
[365337257,1749606647666,-471.42370798,0.00016438,2]
[365337258,1749606647675,-497.6114898,0.00016438,2]
[365337259,1749606647684,-474.77211633,0.00016438,2]
[365337260,1749606647693,-465.31206899,0.00016438,2]
[365337261,1749606647703,-483.76000931,0.00016438,2]
[365337262,1749606647713,-582.27632636,0.00016438,2]
[365337263,1749606647724,-441.74083692,0.00016438,2]
[365337264,1749606647732,-469.5588554,0.00016438,2]
[365337265,1749606647741,-485.73409513,0.00016438,2]
[365337266,1749606647750,-466.64389348,0.00016438,2]
[365337267,1749606647759,-156.74642957,0.00016438,2]
[365337268,1749606647768,-466.06559755,0.00016438,2]
[365337269,1749606647778,-464.26883272,0.00016438,2]
[365337270,1749606647788,-502.35124341,0.00016438,2]
[365337271,1749606647797,-467.42121296,0.00016438,2]
[365337272,1749606647807,-492.90380908,0.00016438,2]
[365337273,1749606647816,-490.0,0.00016438,2]
[365337274,1749606647826,-423.82764152,0.00016438,2]
[365337275,1749606647835,-490.0,0.00016438,2]
[365337276,1749606647844,-536.13708872,0.00016438,2]
[365337277,1749606647853,-464.70826622,0.00016438,2]
[365337278,1749606647862,-390.40805672,0.00016438,2]
[365337279,1749606647872,-523.3,0.00016438,2]
[365337280,1749606647881,-490.0,0.00016438,2]
[365337281,1749606647890,-410.11899861,0.00016438,2]
[365337282,1749606647900,-483.08576331,0.00016438,2]
[365337283,1749606647909,-391.09171173,0.00016438,2]
[365337284,1749606647919,-490.0,0.00016438,2]
[365337285,1749606647928,-431.49960726,0.00016438,2]
[365337286,1749606647938,-490.0,0.00016438,2]
[365337287,1749606647947,-485.74038001,0.00016438,2]
[365337288,1749606647956,-490.0,0.00016438,2]
[365337289,1749606647965,-490.0,0.00016438,2]
[365337290,1749606647974,-490.0,0.00016438,2]
[365337291,1749606647984,-424.65048337,0.00016438,2]
[365337292,1749606647993,-490.0,0.00016438,2]
[365337293,1749606648003,-440.92033351,0.00016438,2]
[365337294,1749606648012,-490.0,0.00016438,2]
[365337295,1749606648022,-490.0,0.00016438,2]
[365337296,1749606648031,-465.4479026,0.00016438,2]
[365337297,1749606648040,-490.0,0.00016438,2]
[365337298,1749606648049,-525.10079348,0.00016438,2]
[365337299,1749606648059,-484.34100718,0.00016438,2]
[365337300,1749606648069,-464.22629971,0.00016438,2]
[365337301,1749606648078,-490.0,0.00016438,2]
[365337302,1749606648087,-364.26691045,0.00016438,2]
[365337303,1749606648097,-490.71054699,0.00016438,2]
[365337304,1749606648106,-445.47089583,0.00016438,2]
[365337305,1749606648116,-503.06501629,0.00016438,2]
[365337306,1749606648125,-490.0,0.00016438,2]
[365337307,1749606648134,-490.0,0.00016438,2]
[365337308,1749606648144,-490.0,0.00016438,2]
[365337309,1749606648154,-484.30407874,0.00016438,2]
[365337310,1749606648164,-490.0,0.00016438,2]
[365337311,1749606648173,-386.80452716,0.00016438,2]
[365337312,1749606648183,-547.36407388,0.00016438,2]
[365337313,1749606648192,-490.0,0.00016438,2]
[365337314,1749606648202,-490.0,0.00016438,2]
[365337315,1749606648212,-304.35837598,0.00016438,2]
[365337316,1749606648221,-490.0,0.00016438,2]
[365337317,1749606648230,-490.0,0.00016438,2]
[365337318,1749606648240,-490.0,0.00016438,2]
[365337319,1749606648251,-492.02219607,0.00016438,2]
[365337320,1749606648260,-490.0,0.00016438,2]
[365337321,1749606648271,-488.19209213,0.00016438,2]
[365337322,1749606648280,-500.29519697,0.00016438,2]
[365337323,1749606648290,-479.15248117,0.00016438,2]
[365337324,1749606648300,-481.55890081,0.00016438,2]
[365337325,1749606648310,-490.0,0.00016438,2]
[365337326,1749606648320,-247.4521336,0.00016438,2]
[365337327,1749606648329,-380.0,0.00016438,2]
[365337328,1749606648338,-490.0,0.00016438,2]
[365337329,1749606648352,-491.56711572,0.00016438,2]
[365337330,1749606648362,-490.0,0.00016438,2]
[365337331,1749606648371,-490.0,0.00016438,2]
[365337332,1749606648380,-490.0,0.00016438,2]
[365337333,1749606648391,-503.24484189,0.00016438,2]
[365337334,1749606648400,-490.0,0.00016438,2]
[365337335,1749606648410,-578.47926888,0.00016438,2]
[365337336,1749606648420,-490.35405857,0.00016438,2]
[365337337,1749606648430,-228.17327675,0.00016438,2]
[365337338,1749606648441,-490.0,0.00016438,2]
[365337339,1749606648450,-490.0,0.00016438,2]
[365337340,1749606648460,-488.54485043,0.00016438,2]
[365337341,1749606648469,-472.33575145,0.00016438,2]
[365337342,1749606648479,-613.6421591,0.00016438,2]
[365337343,1749606648488,-498.72333312,0.00016438,2]
[365337344,1749606648498,-486.69843972,0.00016438,2]
[365337345,1749606648507,-501.26417973,0.00016438,2]
[365337346,1749606648518,-513.45570227,0.00016438,2]
[365337347,1749606648528,-490.0,0.00016438,2]
[365337348,1749606648537,-490.0,0.00016438,2]
[365337349,1749606648546,-500.0,0.00016438,2]
[365337350,1749606648556,-489.91494795,0.00016438,2]
[365337351,1749606648565,-501.26247381,0.00016438,2]
[365337352,1749606648575,-487.4318427,0.00016438,2]
[365337353,1749606648584,-493.72081659,0.00016438,2]
[365337354,1749606648594,-490.0,0.00016438,2]
[365337355,1749606648603,-496.80057078,0.00016438,2]
[365337356,1749606648613,-490.0,0.00016438,2]
[365337357,1749606648623,-625.7374358,0.00016438,2]
[365337358,1749606648633,-548.08038435,0.00016438,2]
[365337359,1749606648643,-490.0,0.00016438,2]
[365337360,1749606648652,-490.0,0.00016438,2]
[365337361,1749606648662,-510.42533675,0.00016438,2]
[365337362,1749606648672,-490.0,0.00016438,2]
[365337363,1749606648682,-501.60323449,0.00016438,2]
[365337364,1749606648691,-490.0,0.00016438,2]
[365337365,1749606648700,-491.72436716,0.00016438,2]
[365337366,1749606648710,-490.0,0.00016438,2]
[365337367,1749606648719,-563.77448295,0.00016438,2]
[365337368,1749606648728,-490.0,0.00016438,2]
[365337369,1749606648738,-469.7307752,0.00016438,2]
[365337370,1749606648748,-501.09936479,0.00016438,2]
[365337371,1749606648757,-477.24526332,0.00016438,2]
[365337372,1749606648766,-563.23556927,0.00016438,2]
[365337373,1749606648775,-499.30547941,0.00016438,2]
[365337374,1749606648785,-518.47056672,0.00016438,2]
[365337375,1749606648794,-490.0,0.00016438,2]
[365337376,1749606648803,-497.38044901,0.00016438,2]
[365337377,1749606648813,-490.0,0.00016438,2]
[365337378,1749606648822,-471.00888475,0.00016438,2]
[365337379,1749606648831,-490.0,0.00016438,2]
[365337380,1749606648840,-486.43058165,0.00016438,2]
[365337381,1749606648850,-512.89184505,0.00016438,2]
[365337382,1749606648859,-494.26671489,0.00016438,2]
[365337383,1749606648868,-490.0,0.00016438,2]
[365337384,1749606648877,-330.40285815,0.00016438,2]
[365337385,1749606648886,-157.04818611,0.00016438,2]
[365337386,1749606648895,-565.08487922,0.00016438,2]
[365337387,1749606648904,-521.25512752,0.00016438,2]
[365337388,1749606648914,-490.0,0.00016438,2]
[365337389,1749606648924,-489.96611995,0.00016438,2]
[365337390,1749606648933,-494.62456628,0.00016438,2]
[365337391,1749606648943,-496.2042021,0.00016438,2]
[365337392,1749606648952,-490.0,0.00016438,2]
[365337393,1749606648961,-630.43992115,0.00016438,2]
[365337394,1749606648970,-573.78724027,0.00016438,2]
[365337395,1749606648979,-547.49717098,0.00016438,2]
[365337396,1749606648988,-196.94806863,0.00016438,2]
[365337397,1749606648998,-490.0,0.00016438,2]
[365337398,1749606649007,-509.44767579,0.00016438,2]
[365337399,1749606649016,-507.32017754,0.00016438,2]
[365337400,1749606649025,-375.09755207,0.00016438,2]
[365337401,1749606649034,-490.0,0.00016438,2]
[365337402,1749606649044,-512.83220704,0.00016438,2]
[365337403,1749606649053,-170.36743464,0.00016438,2]
[365337404,1749606649063,-471.36454829,0.00016438,2]
[365337405,1749606649073,-542.88561016,0.00016438,2]
[365337406,1749606649083,-609.56729539,0.00016438,2]
[365337407,1749606649092,-501.44655984,0.00016438,2]
[365337408,1749606649102,-496.10754508,0.00016438,2]
[365337409,1749606649111,-490.0,0.00016438,2]
[365337410,1749606649120,-490.0,0.00016438,2]
[365337411,1749606649130,-155.74950624,0.00016438,2]
[365337412,1749606649139,-524.04408773,0.00016438,2]
[365337413,1749606649148,-562.46097059,0.00016438,2]
[365337414,1749606649158,-497.099198,0.00016438,2]
[365337415,1749606649167,-490.0,0.00016438,2]
[365337416,1749606649177,-474.94690719,0.00016438,2]
[365337417,1749606649186,-553.84222631,0.00016438,2]
[365337418,1749606649196,-490.0,0.00016438,2]
[365337419,1749606649206,-490.0,0.00016438,2]
[365337420,1749606649215,-152.63,0.00016438,2]
[365337421,1749606649224,-482.57630367,0.00016438,2]
[365337422,1749606649234,-592.48,0.00016438,2]
[365337423,1749606649243,-471.810847,0.00016438,2]
[365337424,1749606649253,-490.0,0.00016438,2]
[365337425,1749606649263,-499.03977603,0.00016438,2]
[365337426,1749606649272,-464.63042147,0.00016438,2]
[365337427,1749606649281,-473.60284355,0.00016438,2]